bitfinex-derivatives/quotes_ETHF0:USTF0_20250214
["timestamp","ask_amount","ask_price","bid_price","bid_amount"]
[1739562515539,0.72877,2743.2,2743.1,0.72877]
[1739562516137,41.9263,2743.3,2743.1,0.72877]
[1739562516342,0.72875,2743.2,2743.1,0.72877]
[1739562517342,41.9263,2743.3,2743.0,0.5664]
[1739562517546,42.65505,2743.3,2743.1,0.72877]
[1739562517738,42.65505,2743.3,2743.0,0.5664]
[1739562517739,41.9263,2743.3,2743.0,0.5664]
[1739562518043,0.72876,2743.2,2743.1,0.72876]
[1739562518444,0.72875,2743.2,2743.1,0.72876]
[1739562518845,41.9263,2743.3,2743.0,0.5664]
[1739562519347,42.65504,2743.3,2743.2,0.72875]
[1739562520743,41.9263,2743.3,2743.0,0.5664]
[1739562521148,0.72875,2743.2,2743.1,0.72876]
[1739562521347,41.9263,2743.3,2742.9,0.1821233]
[1739562521643,0.72876,2743.2,2743.1,0.72876]
[1739562521842,43.18913809,2743.3,2742.9,0.1821233]
[1739562522046,0.72878,2743.1,2743.0,0.72878]
[1739562522438,0.72876,2743.2,2743.1,0.72877]
[1739562522839,0.72883,2743.0,2742.9,0.72882]
[1739562523944,1.74103809,2743.1,2742.8,3.7712]
[1739562524146,0.72881,2743.0,2742.9,0.72881]
[1739562525045,4.94883809,2743.1,2742.8,0.5634]
[1739562525244,2.55906809,2742.9,2742.8,0.5634]
[1739562525440,1.29623,2742.9,2742.8,1.29225]
[1739562525746,0.5674,2742.9,2742.8,1.29225]
[1739562526047,1.29623,2742.9,2742.8,0.5634]
[1739562526247,0.72888,2742.8,2742.6,1.99171809]
[1739562526448,0.72888,2742.8,2742.6,2.52831809]
[1739562526750,0.72888,2742.7,2742.6,1.2655]
[1739562527136,0.72888,2742.7,2742.4,0.5604]
[1739562527137,1.26283809,2742.7,2742.4,0.5604]
[1739562527443,0.72897,2742.4,2742.3,0.5366]
[1739562527638,0.72899,2742.3,2742.2,0.729]
[1739562527948,3.11542809,2742.3,2742.2,0.729]
[1739562528247,41.9236,2742.3,2742.2,1.99184809]
[1739562529742,41.9236,2742.3,2742.2,0.72901]
[1739562530647,41.9236,2742.3,2742.1,4.51683]
[1739562530947,41.9236,2742.3,2742.2,0.72901]
[1739562531148,41.3485,2742.3,2742.2,0.72901]
[1739562531348,40.8,2742.3,2742.2,0.72901]
[1739562531542,40.8,2742.3,2742.2,1.28571]
[1739562531746,0.00546727,2742.5,2742.4,0.72896]
[1739562531943,0.00546727,2742.5,2742.4,3.55213246]
[1739562532348,0.00546727,2742.5,2742.4,4.09793246]
[1739562533050,0.00546727,2742.5,2742.4,0.5458]
[1739562533252,1.28909727,2742.5,2742.4,0.5458]
[1739562534353,0.72896,2742.4,2742.2,0.72899]
[1739562534651,0.5715,2742.4,2742.1,3.799]
[1739562534853,0.729,2742.3,2742.1,4.52803]
[1739562535957,1.2067,2742.3,2742.1,3.799]
[1739562536147,0.5715,2742.4,2742.1,3.799]
[1739562536350,0.5715,2742.4,2742.3,0.72898]
[1739562537053,0.56016727,2742.5,2742.4,0.72896]
[1739562537351,0.00546727,2742.5,2742.4,6.75993246]
[1739562538142,0.00546727,2742.5,2742.4,3.93676]
[1739562538655,0.00546727,2742.5,2742.4,6.75993246]
[1739562543152,41.3652,2742.9,2742.8,0.72885]
[1739562543751,41.3652,2742.9,2742.7,0.5608]
[1739562544360,41.3652,2742.9,2742.8,0.72885]
[1739562546453,41.3652,2742.9,2742.8,1.26965]
[1739562552364,41.3652,2742.9,2742.8,0.72885]
[1739562552559,41.3652,2742.9,2742.5,0.00546727]
[1739562552859,0.7289,2742.6,2742.5,0.00546727]
[1739562553048,0.72903,2742.2,2741.9,3.2078]
[1739562553251,0.5775,2742.1,2742.0,0.72906]
[1739562553655,41.3775,2742.1,2742.0,0.72906]
[1739562553862,41.3775,2742.1,2741.9,3.2078]
[1739562554054,42.10655,2742.1,2741.9,3.2078]
[1739562554559,42.10655,2742.1,2741.9,3.93688]
[1739562554861,6.03097246,2742.0,2741.1,0.17924352]
[1739562555065,3.2078,2741.7,2741.2,0.5787]
[1739562555359,3.2078,2741.7,2741.4,0.72922]
[1739562555554,3.2078,2741.7,2741.2,0.5787]
[1739562555555,0.72918,2741.6,2741.3,0.72924]
[1739562556458,3.21326727,2741.7,2741.2,1.30796]
[1739562556760,6.03643973,2741.7,2741.2,0.5787]
[1739562556956,3.93704,2741.4,2741.2,0.5787]
[1739562557255,3.93704,2741.4,2740.7,1.674]
[1739562557256,6.03097246,2741.4,2740.7,1.674]
[1739562557459,6.03097246,2741.4,2740.3,2.82317246]
[1739562557460,3.2078,2741.1,2740.5,0.72944]
[1739562557657,3.2078,2740.7,2740.3,0.72951]
[1739562557859,3.2078,2740.7,2740.2,0.72953]
[1739562558359,3.2078,2740.7,2740.0,2.82317246]
[1739562558962,3.2078,2740.7,2740.2,0.72953]
[1739562559158,40.8,2740.6,2740.2,0.72953]
[1739562560264,40.8,2740.6,2740.0,4.49717246]
[1739562560463,40.8,2740.6,2740.2,0.72953]
[1739562560861,40.8,2740.6,2740.0,4.49717246]
[1739562561057,0.04392355,2740.4,2740.3,0.72951]
[1739562561464,3.2078,2741.2,2740.3,2.82317246]
[1739562561667,3.2078,2741.2,2740.9,0.72934]
[1739562562162,1.0854,2741.5,2740.9,2.82317246]
[1739562562370,3.21326727,2741.7,2741.4,0.7292]
[1739562562863,3.21326727,2741.7,2741.3,0.72924]
[1739562563060,3.21326727,2741.7,2741.2,2.82317246]
[1739562563267,0.00546727,2741.7,2741.6,0.72917]
[1739562563966,0.00546727,2741.7,2741.6,1.26747]
[1739562564765,0.00546727,2741.7,2741.6,1.81487]
[1739562568667,0.00546727,2741.7,2741.5,1.674]
[1739562569177,0.00546727,2741.7,2741.6,0.72917]
[1739562571463,0.00546727,2741.7,2741.6,1.09397]
[1739562571665,0.00546727,2741.7,2741.6,2.23757]
[1739562572567,3.93679,2742.3,2741.6,2.23757]
[1739562572768,3.93679,2742.3,2742.0,0.72904]
[1739562572965,41.52903,2742.2,2741.9,0.72908]
[1739562573166,41.52902,2742.2,2741.9,1.27247]
[1739562573462,40.8,2742.2,2742.0,0.72906]
[1739562574171,40.8,2742.2,2741.9,0.5434]
[1739562574374,40.8,2742.2,2742.0,0.72905]
[1739562575072,40.8,2742.2,2742.1,0.72904]
[1739562575572,40.8,2742.2,2742.0,0.72905]
[1739562575868,40.8,2742.2,2742.1,0.72904]
[1739562576070,41.52903,2742.2,2741.9,1.27248]
[1739562576572,41.52903,2742.2,2742.0,0.72906]
[1739562576870,40.8,2742.2,2742.1,0.72904]
[1739562578466,0.00546727,2742.4,2742.3,0.72898]
[1739562578874,40.80546727,2742.4,2742.3,0.72898]
[1739562580370,0.00546727,2742.4,2742.3,3.93678]
[1739562580573,0.5906,2743.0,2742.4,1.82234]
[1739562580772,3.93663,2742.9,2742.7,0.72888]
[1739562580976,40.8,2742.8,2742.7,0.72888]
[1739562582271,3.2078,2742.9,2742.7,0.72888]
[1739562582566,3.2078,2742.9,2742.8,0.72885]
[1739562582970,3.2078,2742.9,2742.7,0.72886]
[1739562583675,3.93663,2742.9,2742.7,0.72886]
[1739562583875,0.72886,2742.8,2742.6,0.7289]
[1739562584075,3.2078,2742.9,2742.6,0.7289]
[1739562584278,3.2078,2742.9,2742.5,2.2336]
[1739562584279,3.93663,2742.9,2742.7,0.72887]
[1739562584473,3.93663,2742.9,2742.5,2.2336]
[1739562584679,3.93663,2742.9,2742.6,0.72889]
[1739562584879,0.72886,2742.8,2742.6,0.72889]
[1739562585873,0.72887,2742.8,2742.6,0.72889]
[1739562586074,0.72885,2742.8,2742.5,2.96251]
[1739562586275,0.72888,2742.7,2742.5,2.96251]
[1739562586982,0.72888,2742.7,2742.6,0.7289]
[1739562587176,0.72888,2742.7,2742.5,2.96251]
[1739562587381,3.2078,2742.9,2742.6,0.7289]
[1739562587382,1.28938,2742.8,2742.6,0.7289]
[1739562587779,0.5605,2742.8,2742.5,2.2336]
[1739562587982,0.7289,2742.7,2742.5,2.96253]
[1739562588177,1.28937,2742.8,2742.6,0.7289]
[1739562588578,0.72888,2742.7,2742.5,2.96251]
[1739562588885,1.28937,2742.8,2742.6,0.7289]
[1739562589185,1.28937,2742.8,2742.6,0.72889]
[1739562589186,1.28936,2742.8,2742.6,0.72889]
[1739562589385,1.28937,2742.8,2742.6,0.72889]
[1739562589689,0.72888,2742.7,2742.5,2.96251]
[1739562589886,0.5605,2742.8,2742.5,2.2336]
[1739562590284,0.5605,2742.8,2742.5,2.96252]
[1739562590285,0.72889,2742.7,2742.5,2.96252]
[1739562590675,0.5605,2742.8,2742.5,2.2336]
[1739562590981,0.7289,2742.6,2742.5,2.96253]
[1739562591186,0.72894,2742.5,2742.3,2.40096]
[1739562591388,0.5605,2742.8,2742.4,0.72895]
[1739562591779,0.72892,2742.6,2742.4,0.72895]
[1739562592077,0.7289,2742.7,2742.5,0.72892]
[1739562592284,0.7289,2742.7,2742.3,1.672]
[1739562592486,0.7289,2742.7,2742.5,0.72891]
[1739562592880,0.5605,2742.8,2742.6,0.72889]
[1739562593074,0.72888,2742.7,2742.5,0.72892]
[1739562593281,0.5605,2742.8,2742.3,4.49517246]
[1739562593584,0.5605,2742.8,2742.4,0.72896]
[1739562593779,0.72891,2742.6,2742.5,0.72893]
[1739562593979,0.72891,2742.6,2742.3,4.49517246]
[1739562594178,0.72894,2742.5,2742.3,4.49517246]
[1739562594379,2.38265,2742.8,2742.3,4.49517246]
[1739562594380,0.72891,2742.6,2742.3,4.49517246]
[1739562594579,0.72891,2742.6,2742.5,0.72893]
[1739562594795,0.72894,2742.5,2742.4,0.72895]
[1739562594981,0.72892,2742.6,2742.4,0.72895]
[1739562595179,0.72892,2742.6,2742.5,0.72893]
[1739562596080,0.5605,2742.8,2742.5,0.72893]
[1739562596290,0.7289,2742.6,2742.5,0.72893]
[1739562596475,0.5605,2742.8,2742.5,0.72893]
[1739562596781,0.7289,2742.6,2742.5,0.72893]
[1739562597084,0.72894,2742.5,2742.4,0.72895]
[1739562598387,0.72894,2742.5,2742.3,1.672]
[1739562598580,2.38266,2742.8,2742.4,0.72895]
[1739562598782,0.72894,2742.5,2742.4,0.72895]
[1739562599382,3.93675,2742.5,2742.3,0.72897]
[1739562599588,3.2078,2742.5,2742.2,0.5911]
[1739562599787,0.72896,2742.4,2742.3,0.72897]
[1739562599983,3.2078,2742.5,2742.4,0.72896]
[1739562600481,3.2078,2742.8,2742.3,2.82317246]
[1739562600678,3.2078,2742.8,2742.7,0.72888]
[1739562600881,3.2078,2742.8,2742.6,2.82317246]
[1739562601081,3.93666,2742.8,2742.7,1.87468]
[1739562601282,3.93666,2742.8,2742.7,1.1458]
[1739562601486,0.00546727,2743.0,2742.7,1.87468]
[1739562601487,0.72885,2742.9,2742.7,1.87468]
[1739562601881,0.00546727,2743.0,2742.7,1.1458]
[1739562602190,0.72885,2742.9,2742.7,1.87468]
[1739562603486,3.93665,2742.8,2742.7,0.5715]
[1739562603679,0.72893,2742.5,2742.4,0.5657]
[1739562603881,3.2078,2742.5,2742.1,1.672]
[1739562604084,0.72903,2742.2,2742.0,1.672]
[1739562604488,40.8,2742.1,2742.0,2.40106]
[1739562604683,41.52904,2742.1,2742.0,1.672]
[1739562605078,40.8,2742.1,2741.9,1.1442]
[1739562605283,0.72909,2741.9,2741.8,0.00546727]
[1739562605587,3.93689,2741.9,2741.8,0.00546727]
[1739562611792,3.93689,2741.9,2741.8,0.73458727]
[1739562612693,3.93689,2741.9,2741.8,0.00546727]
[1739562613387,3.2078,2742.2,2741.8,0.73458727]
[1739562613592,3.2078,2742.7,2742.6,0.7289]
[1739562613792,3.2078,2742.7,2742.6,2.82317246]
[1739562613989,0.00546727,2743.0,2742.8,0.72884]
[1739562614188,0.73427727,2743.0,2742.7,0.72886]
[1739562614398,0.73427727,2743.0,2742.7,1.31596]
[1739562614594,40.8,2742.9,2742.7,1.31596]
[1739562614797,40.8,2742.9,2742.7,0.5871]
[1739562614995,40.8,2742.9,2742.8,2.40085]
[1739562616000,0.00546727,2743.0,2742.8,2.40085]
[1739562616589,40.80546727,2743.0,2742.8,2.40085]
[1739562617896,41.53427727,2743.0,2742.8,1.672]
[1739562618399,40.80546727,2743.0,2742.8,2.40085]
[1739562618604,0.72885,2742.8,2742.7,0.5871]
[1739562618792,40.80546727,2743.0,2742.7,0.5871]
[1739562619092,3.2078,2742.9,2742.3,2.2524]
[1739562619295,0.72895,2742.5,2742.3,2.2524]
[1739562619599,3.2078,2742.6,2742.3,0.5814]
[1739562619810,0.72896,2742.4,2742.3,0.5814]
[1739562620309,0.72901,2742.2,2742.1,1.671]
[1739562620505,3.2078,2742.3,2742.1,1.671]
[1739562620813,3.2078,2742.3,2742.0,0.5947]
[1739562621015,0.72904,2742.1,2741.9,0.5808]
[1739562621316,0.72904,2742.1,2741.9,1.30989]
[1739562621510,0.72904,2742.1,2741.8,0.00546727]
[1739562621511,3.2078,2742.0,2741.8,0.00546727]
[1739562621808,40.8,2741.9,2741.8,0.00546727]
[1739562622215,41.52909,2741.9,2741.8,0.00546727]
[1739562626309,40.8,2741.9,2741.8,0.73458727]
[1739562626512,0.72903,2742.2,2742.0,0.72906]
[1739562626717,3.2078,2742.3,2741.8,0.00546727]
[1739562626919,3.93678,2742.3,2742.1,0.72903]
[1739562627119,0.72902,2742.2,2742.0,0.72905]
[1739562627312,0.72905,2742.1,2741.9,0.72908]
[1739562627512,0.72903,2742.2,2741.9,0.72908]
[1739562628018,0.72903,2742.2,2741.9,0.72909]
[1739562628216,3.2078,2742.3,2741.8,0.73457727]
[1739562628420,0.72905,2742.1,2741.8,0.73457727]
[1739562628618,0.72905,2742.1,2741.9,0.72908]
[1739562628823,0.72902,2742.2,2741.9,0.72908]
[1739562629319,0.72905,2742.1,2741.8,0.00546727]
[1739562629518,0.72904,2742.1,2741.9,0.72908]
[1739562629918,3.2078,2742.3,2741.8,0.00546727]
[1739562630218,3.9368,2742.3,2742.0,0.72905]
[1739562630419,3.9368,2742.3,2742.1,0.5905]
[1739562630824,44.0078,2742.6,2742.1,0.5905]
[1739562631118,3.21326727,2743.0,2742.5,2.82317246]
[1739562631420,3.21326727,2743.0,2742.8,0.72884]
[1739562631625,40.8,2742.9,2742.8,0.72884]
[1739562632320,40.8,2742.9,2742.7,0.5905]
[1739562632508,40.8,2742.9,2742.8,0.72885]
[1739562633914,40.8,2742.9,2742.7,0.5905]
[1739562634115,40.8,2742.9,2742.8,0.72885]
[1739562634923,0.00546727,2743.0,2742.8,3.55201246]
[1739562635124,0.00546727,2743.0,2742.7,0.5905]
[1739562635428,40.8,2742.9,2742.7,0.5905]
[1739562636128,0.72885,2742.8,2742.7,0.5905]
[1739562636323,3.21326727,2743.0,2742.7,0.5905]
[1739562636819,40.8,2742.8,2742.7,0.5905]
[1739562637823,40.8,2742.8,2742.6,2.39989]
[1739562638227,41.52887,2742.8,2742.6,2.39989]
[1739562638725,40.8,2742.8,2742.6,2.39989]
[1739562639125,40.8,2742.8,2742.6,1.671]
[1739562639434,40.8,2742.8,2742.7,0.72888]
[1739562640336,40.8,2742.8,2742.6,1.671]
[1739562640633,41.52885,2742.8,2742.6,2.39989]
[1739562640930,41.52886,2742.8,2742.6,2.3999]
[1739562641332,41.52886,2742.8,2742.6,2.39989]
[1739562641531,41.52886,2742.8,2742.6,2.3999]
[1739562641828,40.8,2742.8,2742.7,0.72888]
[1739562642028,40.8,2742.8,2742.4,2.2159]
[1739562642230,41.52886,2742.8,2742.6,0.7289]
[1739562642629,0.72889,2742.7,2742.5,0.72892]
[1739562642826,3.2078,2742.7,2742.2,0.5537]
[1739562643024,0.72903,2742.2,2742.0,2.39905]
[1739562643230,3.2078,2742.1,2741.9,0.5714]
[1739562643422,0.72909,2741.9,2741.8,0.57746727]
[1739562643622,0.72909,2741.9,2741.8,0.00546727]
[1739562644535,41.52909,2741.9,2741.8,0.00546727]
[1739562646627,40.8,2741.9,2741.8,0.73458727]
[1739562647033,40.8,2741.9,2741.8,0.00546727]
[1739562647235,41.52909,2741.9,2741.8,0.00546727]
[1739562647530,41.52909,2741.9,2741.8,0.73458727]
[1739562648235,40.8,2741.9,2741.8,0.73458727]
[1739562648738,41.52909,2741.9,2741.8,0.73458727]
[1739562648935,41.52909,2741.9,2741.8,0.00546727]
[1739562650833,40.8,2741.9,2741.8,0.73458727]
[1739562651636,3.2078,2742.1,2741.8,0.73457727]
[1739562651637,0.72907,2742.0,2741.8,0.73457727]
[1739562651837,3.2078,2742.1,2742.0,0.72906]
[1739562652034,44.0078,2742.1,2741.8,0.00546727]
[1739562652332,44.0078,2742.1,2741.9,2.82317246]
[1739562652533,0.72906,2742.0,2741.9,3.40737246]
[1739562652734,0.72906,2742.0,2741.9,0.5842]
[1739562653135,40.8,2742.1,2741.9,0.5842]
[1739562653333,3.2078,2742.5,2742.0,1.67]
[1739562653638,3.2078,2742.5,2742.4,0.72896]
[1739562653839,0.72896,2742.4,2742.2,0.729]
[1739562654036,44.73674,2742.5,2742.3,0.72897]
[1739562654344,44.0078,2742.5,2742.4,0.72896]
[1739562654544,44.73673,2742.5,2742.3,0.72897]
[1739562654730,40.8,2742.5,2742.3,0.72897]
[1739562654926,40.8,2742.5,2742.4,0.72896]
[1739562655136,40.8,2742.5,2742.3,0.72896]
[1739562655329,40.8,2742.5,2742.4,0.72896]
[1739562655640,40.8,2742.5,2742.1,0.5758]
[1739562655836,40.8,2742.5,2742.4,0.72896]
[1739562658337,0.00546727,2743.0,2742.7,0.72886]
[1739562658540,0.73428727,2743.0,2742.7,0.72886]
[1739562658738,0.72883,2742.9,2742.7,1.27616]
[1739562658941,40.8,2742.8,2742.7,1.27616]
[1739562659837,41.52885,2742.8,2742.7,0.5473]
[1739562660034,41.52885,2742.8,2742.6,0.7289]
[1739562660541,40.8,2742.8,2742.7,0.72888]
[1739562660938,41.52886,2742.8,2742.6,1.28539]
[1739562661841,40.8,2742.8,2742.4,0.5473]
[1739562662038,0.72894,2742.5,2742.3,0.72897]
[1739562662440,3.2078,2742.6,2742.1,1.669]
[1739562662645,3.93673,2742.6,2742.4,0.72895]
[1739562663644,0.72893,2742.5,2742.4,0.72896]
[1739562663946,3.2078,2742.6,2742.1,1.669]
[1739562664241,3.93672,2742.6,2742.5,0.72893]
[1739562664633,3.2078,2742.6,2742.5,0.72893]
[1739562664838,3.9367,2742.6,2742.5,0.72893]
[1739562665944,3.2078,2742.6,2742.5,0.72893]
[1739562666147,3.9367,2742.6,2742.5,0.72893]
[1739562666952,3.2078,2742.6,2742.5,0.72893]
[1739562667140,3.9367,2742.6,2742.5,0.72893]
[1739562667439,0.7289,2742.6,2742.5,0.72893]
[1739562668935,1.033,2742.7,2742.2,1.82252]
[1739562669348,0.72892,2742.6,2742.5,0.72893]
[1739562669654,0.72895,2742.5,2742.4,0.72894]
[1739562673247,2.82317246,2742.5,2742.0,1.129]
[1739562673447,3.2078,2742.3,2741.8,0.00546727]
[1739562673646,0.72909,2741.9,2741.8,0.73458727]
[1739562673842,0.72909,2741.9,2741.8,0.00546727]
[1739562674245,41.52909,2741.9,2741.8,0.00546727]
[1739562675248,41.52909,2741.9,2740.7,6.03097246]
[1739562675249,45.44596246,2741.9,2741.0,1.1086]
[1739562675547,3.2078,2741.4,2741.3,0.72925]
[1739562675745,0.72921,2741.5,2741.3,0.72925]
[1739562675968,3.2078,2741.4,2741.0,1.1086]
[1739562676337,0.7293,2741.1,2741.0,1.1086]
[1739562676537,0.72933,2741.0,2740.9,0.00546727]
[1739562677142,41.52933,2741.0,2740.9,0.00546727]
[1739562678855,0.72944,2740.6,2740.4,0.72947]
[1739562679051,0.72946,2740.5,2740.4,0.72947]
[1739562679352,3.2078,2740.6,2740.4,0.72947]
[1739562679548,3.2078,2740.6,2740.5,0.72946]
[1739562679758,3.2078,2741.2,2740.4,2.82317246]
[1739562680053,3.2078,2741.2,2741.1,0.7293]
[1739562680248,3.2078,2741.2,2740.8,3.55254246]
[1739562680249,44.0078,2741.2,2740.8,3.55254246]
[1739562680453,0.72934,2741.0,2740.8,0.72936]
[1739562680751,44.0078,2741.2,2740.8,0.72936]
[1739562680947,0.72932,2741.1,2740.9,0.72935]
[1739562681147,0.72932,2741.1,2740.8,0.549]
[1739562681453,44.0078,2741.2,2740.8,0.549]
[1739562681651,0.72935,2741.0,2740.8,0.549]
[1739562681848,0.72936,2740.9,2740.8,0.549]
[1739562682453,0.72934,2741.0,2740.8,0.549]
[1739562682851,44.0078,2741.2,2740.8,0.549]
[1739562683059,44.0078,2741.2,2740.6,0.5887]
[1739562683354,0.72945,2740.6,2740.3,2.9524]
[1739562683551,0.72944,2740.7,2740.4,0.72949]
[1739562683754,3.2078,2740.9,2740.3,2.2229]
[1739562683955,0.72942,2740.7,2740.3,2.2229]
[1739562684453,0.72942,2740.7,2740.4,0.72947]
[1739562684960,0.72942,2740.7,2740.5,0.72946]
[1739562685157,0.72941,2740.7,2740.5,0.72946]
[1739562685557,0.72945,2740.6,2740.3,1.2844]
[1739562685858,0.72945,2740.6,2740.4,0.72948]
[1739562686154,0.72943,2740.7,2740.3,0.5549]
[1739562686349,0.72943,2740.7,2740.4,0.72947]
[1739562686750,3.2078,2740.9,2740.5,3.38497246]
[1739562686957,3.2078,2740.9,2740.8,0.72938]
[1739562687361,0.72931,2741.1,2740.8,0.72936]
[1739562687654,0.7293,2741.1,2740.9,0.5613]
[1739562688056,44.0078,2741.2,2741.0,0.5594]
[1739562688254,40.8,2741.2,2741.0,0.5594]
[1739562688450,41.5293,2741.2,2741.0,0.5594]
[1739562688649,41.5293,2741.2,2741.0,1.28873]
[1739562688851,44.0078,2741.2,2741.0,0.5594]
[1739562689052,0.7293,2741.1,2741.0,0.5594]
[1739562689448,44.0078,2741.2,2740.6,1.668]
[1739562689655,3.2078,2740.9,2740.8,0.72938]
[1739562689855,3.2078,2740.9,2740.7,1.1198]
[1739562690056,3.2078,2740.9,2740.8,0.72938]
[1739562690656,3.2078,2740.9,2740.7,1.1198]
[1739562690861,3.93718,2740.9,2740.7,1.8492]
[1739562692165,0.72938,2740.8,2740.7,1.1198]
[1739562692962,0.72938,2740.8,2740.7,1.84921]
[1739562693362,0.72938,2740.8,2740.7,1.1198]
[1739562694065,0.72945,2740.6,2740.4,1.125]
[1739562694264,0.72945,2740.6,2740.5,0.72946]
[1739562694458,0.72942,2740.7,2740.6,0.72943]
[1739562694764,0.72941,2740.8,2740.6,0.72943]
[1739562694960,0.72941,2740.7,2740.6,0.72943]
[1739562695158,3.7945,2740.9,2740.4,1.125]
[1739562695360,3.7945,2740.9,2740.5,0.72946]
[1739562695667,0.72944,2740.6,2740.5,0.72946]
[1739562696266,0.72939,2740.8,2740.4,1.125]
[1739562696465,0.72939,2740.8,2740.6,0.72942]
[1739562696661,3.2078,2740.9,2740.4,1.125]
[1739562696865,45.29117246,2741.2,2738.9,4.24335702]
[1739562696866,6.03097246,2740.5,2738.9,4.24335702]
[1739562697068,42.468,2741.2,2739.3,0.5806]
[1739562697069,6.03097246,2740.0,2739.3,0.5806]
[1739562697259,6.03097246,2740.0,2738.6,4.64804246]
[1739562697260,6.03097246,2740.0,2739.0,6.39657246]
[1739562697459,6.03097246,2740.0,2739.0,3.18877246]
[1739562697460,40.8,2739.4,2739.0,3.18877246]
[1739562697657,40.8,2739.4,2739.0,0.3656]
[1739562697868,40.8,2739.4,2739.3,0.72978]
[1739562698166,40.8,2739.4,2739.1,1.668]
[1739562698563,0.7298,2739.3,2739.0,0.3656]
[1739562698760,0.72983,2739.2,2738.7,1.31053]
[1739562698972,0.5619,2739.3,2738.8,0.06700305]
[1739562699164,3.2078,2739.0,2738.8,0.06700305]
[1739562699364,3.2078,2739.0,2738.0,19.101]
[1739562699365,3.2078,2738.7,2737.2,28.84387861]
[1739562699574,3.2078,2738.7,2737.3,0.43261028]
[1739562699575,3.2078,2738.1,2737.3,0.43261028]
[1739562699766,3.2078,2738.1,2737.4,0.06701028]
[1739562700065,40.8,2738.0,2737.6,2.82317246]
[1739562700274,3.2078,2738.1,2737.9,3.55333246]
[1739562700470,0.00547735,2738.2,2737.9,4.49117246]
[1739562700670,0.00547735,2738.2,2738.1,0.7301]
[1739562700865,40.80547735,2738.2,2738.1,3.27480775]
[1739562701261,40.80547735,2738.2,2738.1,0.06700775]
[1739562701466,46.83644981,2738.2,2737.5,1.119]
[1739562701770,46.83644981,2738.2,2737.6,0.0670102]
[1739562701771,3.2078,2737.9,2737.6,0.0670102]
[1739562702570,3.2078,2737.9,2737.5,2.787]
[1739562702763,44.01327735,2738.2,2737.6,0.79724075]
[1739562702968,3.21327735,2738.2,2737.7,0.79722031]
[1739562703165,3.21327735,2738.2,2737.7,0.7302]
[1739562703374,3.21327735,2738.2,2737.6,3.93803]
[1739562703568,3.21327735,2738.2,2737.7,0.06701]
[1739562704264,3.21327735,2738.2,2737.5,2.787]
[1739562704575,3.2078,2737.9,2737.6,0.0670107]
[1739562706081,3.2078,2737.9,2737.6,1.7360107]
[1739562706282,3.2078,2737.9,2737.6,1.669]
[1739562707576,3.2078,2737.9,2737.5,0.73025]
[1739562707883,3.2078,2737.9,2737.3,3.5734]
[1739562707884,3.2078,2737.7,2737.6,0.06701121]
[1739562708082,3.2078,2737.7,2737.4,0.06701121]
[1739562708276,3.2078,2737.7,2737.5,0.06701121]
[1739562708483,0.73016,2737.9,2737.6,0.06701121]
[1739562708674,0.73016,2737.9,2737.3,1.0959]
[1739562708879,0.73016,2737.9,2737.4,0.06701148]
[1739562709186,0.73018,2737.9,2737.4,1.73601148]
[1739562709385,0.73018,2737.9,2737.5,0.06701148]
[1739562710583,3.2078,2737.6,2736.7,1.669]
[1739562710884,3.2078,2737.1,2736.5,0.3656]
[1739562711182,3.2078,2736.8,2736.5,0.3656]
[1739562711389,3.2078,2736.8,2736.0,1.669]
[1739562711578,0.73048,2736.7,2736.2,0.73059]
[1739562711776,0.73048,2736.7,2736.3,0.06701763]
[1739562711975,0.73595735,2736.7,2736.0,1.669]
[1739562712185,0.00547735,2736.7,2736.0,1.669]
[1739562712386,0.00547735,2736.7,2736.3,0.73057]
[1739562712783,0.00547735,2736.7,2736.2,0.73059]
[1739562712979,3.2078,2736.4,2736.0,1.669]
[1739562713379,3.2078,2736.4,2736.2,0.73059]
[1739562713581,3.2078,2736.4,2735.8,3.2078]
[1739562713782,3.2078,2736.4,2735.8,3.5734]
[1739562713983,3.2078,2736.4,2735.8,1.67]
[1739562714278,3.2078,2736.4,2736.1,0.73062]
[1739562715183,3.2078,2736.4,2736.1,0.73063]
[1739562715388,3.2078,2736.4,2735.8,4.8778]
[1739562715590,3.2078,2736.4,2736.0,0.73064]
[1739562715778,3.2078,2736.4,2735.8,3.2078]
[1739562715982,3.2078,2736.4,2736.1,0.73062]
[1739562717083,0.73062,2736.2,2735.5,3.5734]
[1739562717287,0.73062,2736.2,2735.8,0.7307]
[1739562717481,0.73062,2736.2,2735.9,0.73069]
[1739562717687,0.73062,2736.2,2735.5,3.5734]
[1739562717886,0.73062,2736.2,2735.9,0.73069]
[1739562718288,3.2078,2736.1,2735.8,0.7307]
[1739562718492,3.2078,2736.1,2735.7,0.73074]
[1739562718493,0.73066,2736.0,2735.7,0.73074]
[1739562718796,40.8,2735.9,2735.8,0.7307]
[1739562719491,3.93844,2736.1,2735.8,0.7307]
[1739562719692,3.2078,2736.1,2735.8,0.7307]
[1739562719896,44.0078,2736.1,2735.9,0.73068]
[1739562720389,44.0078,2736.1,2735.5,3.5734]
[1739562720592,3.2078,2736.1,2736.0,0.73066]
[1739562720794,3.2078,2736.1,2735.5,8.9506201]
[1739562720991,3.2078,2736.1,2736.0,0.73066]
[1739562721391,3.2078,2736.1,2735.5,7.1236701]
[1739562721696,3.2078,2736.5,2736.3,0.73057]
[1739562721901,3.2078,2736.5,2736.0,1.67]
[1739562722093,40.8,2736.4,2736.3,0.73057]
[1739562722391,40.8,2736.4,2736.2,0.73059]